bitfinex-derivatives/quotes_SOLF0:USTF0_20250803
["timestamp","ask_amount","ask_price","bid_price","bid_amount"]
[1754240897879,3.2,162.19,162.16,3.29]
[1754240898075,3.2,162.19,162.17,3.29]
[1754240898282,3.2,162.18,162.17,3.29]
[1754240899382,2.7,162.18,162.17,3.29]
[1754240901284,2.7,162.18,162.16,112.94]
[1754240901477,2.7,162.18,162.16,116.23]
[1754240901679,2.7,162.18,162.17,3.29]
[1754240903080,3.2,162.19,162.17,3.29]
[1754240903280,3.2,162.19,162.17,6.21522887]
[1754240903482,3.2,162.19,162.18,3.29]
[1754240905584,3.2,162.19,162.17,6.21522887]
[1754240907389,3.2,162.19,162.17,9.50522887]
[1754240908483,3.2,162.25,162.18,3.29]
[1754240908690,4.52769049,162.24,162.22,3.29]
[1754240908882,7.72769049,162.23,162.22,3.29]
[1754240909090,4.52769049,162.23,162.22,3.29]
[1754240909387,7.72769049,162.23,162.22,3.29]
[1754240909583,3.2,162.23,162.22,3.29]
[1754240910588,3.2,162.23,162.21,6.21522887]
[1754240910891,3.2,162.23,162.21,9.50522887]
[1754240911484,3.2,162.23,162.21,6.21522887]
[1754240911988,3.2,162.23,162.21,9.50522887]
[1754240912195,6.164,162.23,162.21,9.50522887]
[1754240912390,3.2,162.22,162.21,9.50522887]
[1754240913598,9.3644,162.22,162.21,6.21522887]
[1754240914397,9.3644,162.22,162.19,122.40522887]
[1754240914697,3.2,162.21,162.2,3.29]
[1754240915791,3.2,162.21,162.19,119.11522887]
[1754240916113,3.2,162.2,162.19,122.40522887]
[1754240916396,3.2,162.21,162.19,119.11522887]
[1754240916697,3.2,162.21,162.2,3.29]
[1754240917301,6.1644,162.22,162.19,119.11522887]
[1754240917598,3.2,162.21,162.2,3.29]
[1754240920799,19.81761652,162.29,162.17,9.50522887]
[1754240920800,3.2,162.2,162.17,9.50522887]
[1754240920997,3.2,162.25,162.19,6.21522887]
[1754240921305,6.1639,162.24,162.22,3.29]
[1754240921493,3.2,162.23,162.22,3.29]
[1754240922096,3.2,162.25,162.22,3.29]
[1754240922392,3.2,162.26,162.24,9.50522887]
[1754240922597,3.2,162.26,162.25,3.29]
[1754240923106,3.2,162.26,162.24,9.50522887]
[1754240923993,3.2,162.26,162.24,6.21522887]
[1754240924695,3.23,162.25,162.24,6.21522887]
[1754240924899,3.23,162.25,162.24,9.42522887]
[1754240925402,3.23,162.28,162.25,3.21]
[1754240925597,9.19048,162.31,162.2,6.21522887]
[1754240925598,9.19048,162.31,162.27,3.21]
[1754240925797,3.23,162.29,162.27,3.21]
[1754240926200,12.42048,162.31,162.29,3.21]
[1754240926406,9.19048,162.31,162.3,9.42522887]
[1754240926797,9.19048,162.31,162.3,6.21522887]
[1754240927097,9.19048,162.31,162.3,9.42522887]
[1754240930809,12.42048,162.31,162.3,9.42522887]
[1754240936008,12.42048,162.31,162.29,112.86]
[1754240936209,12.42048,162.31,162.3,9.42522887]
[1754240938211,9.19048,162.31,162.3,9.42522887]
[1754240939207,12.42048,162.31,162.3,9.42522887]
[1754240942707,3.23,162.3,162.28,6.21522887]
[1754240942908,3.23,162.3,162.29,112.8]
[1754240945409,3.23,162.3,162.29,116.01]
[1754240945613,9.19048,162.31,162.3,3.21]
[1754240945915,12.42048,162.31,162.3,9.42522887]
[1754240946413,12.42048,162.31,162.3,6.21522887]
[1754240949419,12.42048,162.31,162.3,118.99522887]
[1754240950514,18.58148,162.31,162.3,118.99522887]
[1754240951321,12.42048,162.31,162.3,118.99522887]
[1754240952021,18.58148,162.31,162.3,118.99522887]
[1754240955620,12.42048,162.31,162.3,118.99522887]
[1754240956627,18.58148,162.31,162.3,118.99522887]
[1754240958826,12.42048,162.31,162.3,118.99522887]
[1754240959218,12.42048,162.31,162.3,122.16522887]
[1754240960227,12.42048,162.31,162.3,118.99522887]
[1754240961529,12.42048,162.31,162.3,122.16522887]
[1754240964935,9.19048,162.31,162.3,122.16522887]
[1754240965734,3.5,162.33,162.32,3.17]
[1754240965936,3.5,162.34,162.33,3.17]
[1754240970339,3.5,162.34,162.33,9.3302]
[1754240970542,3.5,162.34,162.33,3.17]
[1754240970943,3.5,162.34,162.32,118.97522887]
[1754240971645,3.5,162.34,162.32,122.14522887]
[1754240972044,3.5,162.34,162.33,3.17]
[1754240974445,3.5,162.34,162.32,122.14522887]
[1754240979847,3.5,162.34,162.33,3.17]
[1754240981150,3.5,162.34,162.32,122.14522887]
[1754240984154,9.6391,162.36,162.32,118.97522887]
[1754240984350,3.48,162.36,162.3,9.40522887]
[1754240984544,3.48,162.36,162.31,112.72]
[1754240984850,6.1598,162.35,162.32,3.96667662]
[1754240985050,3.48,162.34,162.32,3.96667662]
[1754240985251,3.48,162.32,162.27,14.46517519]
[1754240985449,3.48,162.32,162.29,3.96667662]
[1754240985649,3.48,162.32,162.3,112.72]
[1754240985860,3.48,162.32,162.31,3.96667662]
[1754240986153,4.6248475,162.32,162.31,3.96667662]
[1754240986350,8.1048475,162.32,162.31,3.96667662]
[1754240986755,4.6248475,162.32,162.3,112.72]
[1754240986957,8.1048475,162.31,162.3,112.72]
[1754240987555,8.10435194,162.31,162.3,115.91]
[1754240996260,3.48,162.31,162.3,115.91]
[1754240996466,8.10414911,162.31,162.3,115.91]
[1754240998065,8.10414911,162.31,162.3,112.72]
[1754240998266,8.10414911,162.31,162.3,115.91]
[1754240999369,8.10454541,162.31,162.3,115.91]
[1754241002371,4.62454541,162.31,162.3,115.91]
[1754241002670,8.10454541,162.31,162.3,115.91]
[1754241003367,8.10454541,162.31,162.3,112.72]
[1754241004375,8.10454541,162.31,162.28,9.38849622]
[1754241004573,3.48,162.29,162.25,5.11297519]
[1754241004777,3.48,162.27,162.21,419.31297519]
[1754241004972,3.48,162.25,162.22,112.7]
[1754241005180,3.48,162.3,162.23,3.19]
[1754241005474,3.48,162.28,162.2,6.19849622]
[1754241005668,3.48,162.26,162.2,3.19]
[1754241005876,3.48,162.24,162.2,115.89]
[1754241006071,3.48,162.22,162.2,115.89]
[1754241006273,3.48,162.21,162.2,118.8651]
[1754241006469,6.19849622,162.29,162.2,112.7]
[1754241006676,3.48,162.23,162.2,112.7]
[1754241006875,3.48,162.23,162.21,3.19]
[1754241007976,3.48,162.28,162.22,3.19]
[1754241008177,3.48,162.26,162.24,3.19]
[1754241008978,3.48,162.3,162.24,3.19]
[1754241009279,3.48,162.28,162.25,3.19]
[1754241009484,3.48,162.28,162.24,6.1634]
[1754241009485,3.48,162.26,162.24,3.19]
[1754241009675,3.48,162.26,162.23,122.10849622]
[1754241010479,9.6429,162.26,162.23,122.10849622]
[1754241010682,6.1629,162.26,162.23,128.27249622]
[1754241010882,3.48,162.25,162.23,128.27249622]
[1754241011379,6.1626,162.27,162.23,128.27249622]
[1754241011681,3.48,162.26,162.24,9.3536]
[1754241012181,6.1629,162.26,162.24,3.19]
[1754241012376,6.1629,162.26,162.23,6.19849622]
[1754241012377,3.48,162.25,162.23,118.91849622]
[1754241012583,3.48,162.25,162.23,122.10849622]
[1754241012782,6.19849622,162.31,162.23,122.10849622]
[1754241012982,3.48,162.24,162.23,122.10849622]
[1754241015982,3.43,162.29,162.23,118.91849622]
[1754241016177,4.56365963,162.28,162.23,118.91849622]
[1754241016480,6.1628,162.27,162.23,122.31849622]
[1754241016686,3.43,162.26,162.23,122.31849622]
[1754241016986,3.43,162.26,162.23,112.72]
[1754241017680,6.163,162.26,162.23,112.72]
[1754241017882,3.43,162.31,162.24,3.4]
[1754241018085,3.43,162.29,162.24,3.4]
[1754241018284,6.19849622,162.32,162.24,3.4]
[1754241018285,3.43,162.27,162.24,3.4]
[1754241018491,3.43,162.26,162.25,6.1633]
[1754241018881,3.43,162.28,162.25,12.36179622]
[1754241019087,3.43,162.28,162.27,3.4]
[1754241019289,3.43,162.28,162.27,9.59849622]
[1754241019484,3.43,162.29,162.28,3.4]
[1754241019990,3.43,162.35,162.28,3.4]
[1754241020287,3.43,162.33,162.3,3.4]
[1754241020486,3.43,162.31,162.3,3.4]
[1754241020689,3.43,162.31,162.3,9.5611]
[1754241021091,3.43,162.31,162.3,3.4]
[1754241021592,3.43,162.32,162.3,3.4]
[1754241021791,3.43,162.32,162.29,118.91849622]
[1754241021985,3.43,162.32,162.31,3.4]
[1754241022186,3.43,162.32,162.29,118.91849622]
[1754241022385,3.43,162.32,162.3,3.4]
[1754241022891,3.43,162.33,162.3,3.4]
[1754241023094,3.43,162.33,162.31,3.4]
[1754241023289,3.43,162.33,162.3,3.4]
[1754241023686,9.5905,162.33,162.3,3.4]
[1754241023893,3.43,162.32,162.3,3.4]
[1754241024190,6.1605,162.33,162.31,3.4]
[1754241024390,3.43,162.38,162.3,3.4]
[1754241024692,3.43,162.36,162.3,3.4]
[1754241024890,3.43,162.34,162.3,3.4]
[1754241025283,3.43,162.33,162.3,9.5614]
[1754241025489,3.43,162.32,162.31,3.4]
[1754241029397,3.43,162.32,162.3,3.4]
[1754241029899,3.43,162.31,162.3,3.4]
[1754241032507,3.43,162.38,162.3,3.4]
[1754241032700,3.43,162.36,162.32,3.4]
[1754241032900,4.56658954,162.35,162.33,6.19849622]
[1754241033100,3.43,162.34,162.33,9.59849622]
[1754241033808,7.99639945,162.34,162.3,118.85849622]
[1754241034007,3.43,162.34,162.3,9.59849622]
[1754241034311,6.1606,162.33,162.3,9.59849622]
[1754241034510,3.43,162.32,162.3,9.59849622]
[1754241036307,3.43,162.31,162.29,112.66]
[1754241036701,3.43,162.31,162.29,116.06]
[1754241038816,6.1612,162.31,162.29,112.66]
[1754241039018,3.43,162.3,162.29,112.66]
[1754241039315,3.43,162.3,162.29,116.06]
[1754241041019,3.43,162.31,162.3,3.4]
[1754241042617,3.43,162.32,162.31,3.4]
[1754241043016,9.5909,162.32,162.29,116.06]
[1754241043518,3.43,162.31,162.29,116.06]
[1754241043724,6.19849622,162.33,162.26,3.38]
[1754241043923,4.57259126,162.32,162.26,116.04]
[1754241044126,6.19849622,162.33,162.26,116.04]
[1754241044127,4.57259126,162.31,162.26,116.04]
[1754241044328,3.45,162.3,162.26,116.04]
[1754241044721,6.162,162.29,162.26,120.00931347]
[1754241044923,3.45,162.28,162.26,120.00931347]
[1754241046026,3.45,162.28,162.26,126.17211347]
[1754241046428,3.45,162.29,162.27,7.34931347]
[1754241046621,6.20128562,162.33,162.27,9.5423]
[1754241046820,3.45,162.3,162.28,3.38]
[1754241048429,3.45,162.3,162.28,9.5421]
[1754241051825,3.45,162.3,162.28,6.1621]
[1754241052818,3.45,162.3,162.27,9.5424]
[1754241053935,3.45,162.3,162.28,9.5421]
[1754241057929,3.45,162.3,162.28,3.38]
[1754241059430,3.45,162.3,162.28,9.5421]
[1754241060030,4.58316269,162.29,162.28,9.5421]
[1754241060229,8.03316269,162.29,162.28,9.5421]
[1754241060926,8.03316269,162.29,162.28,3.38]
[1754241061630,4.58316269,162.29,162.28,9.5421]
[1754241061822,3.45,162.31,162.28,3.38]
[1754241062125,4.58521116,162.3,162.29,6.1614]
[1754241062327,8.03521116,162.3,162.29,6.1614]
[1754241062522,8.03521116,162.3,162.29,9.5414]
[1754241063029,3.45,162.3,162.29,9.5414]
[1754241065025,3.45,162.33,162.3,9.541]
[1754241066432,3.45,162.33,162.31,6.161]
[1754241066825,3.45,162.33,162.31,9.541]
[1754241068933,3.45,162.33,162.31,3.38]
[1754241070436,3.45,162.33,162.31,9.5409]
[1754241071035,3.45,162.33,162.31,3.38]
[1754241071536,3.45,162.33,162.3,7.34745118]
[1754241071736,3.45,162.32,162.29,6.1616]
[1754241072432,3.45,162.32,162.29,9.5416]
[1754241074934,3.45,162.32,162.3,3.46]
[1754241075130,3.45,162.32,162.3,3.96745118]
[1754241075334,3.45,162.32,162.3,7.42745118]
[1754241076539,6.92274439,162.36,162.27,3.96745118]
[1754241076840,3.33,162.3,162.27,3.96745118]
[1754241077031,4.56324816,162.29,162.26,116.62745118]
[1754241077235,3.33,162.27,162.24,7.42745118]
[1754241077538,8.53069934,162.28,162.24,7.42745118]
[1754241077539,3.33,162.25,162.24,7.42745118]
[1754241077939,3.33,162.25,162.24,13.59115118]
[1754241078343,3.33,162.26,162.24,13.59115118]
[1754241078641,3.33,162.26,162.25,3.46]
[1754241078940,7.89318903,162.26,162.25,3.46]
[1754241079136,7.89318903,162.26,162.25,13.59075118]
[1754241079737,4.56318903,162.26,162.25,13.59075118]
[1754241079944,3.33,162.29,162.26,6.1627]
[1754241080142,4.56223646,162.28,162.27,7.42745118]
[1754241080643,7.89223646,162.28,162.27,13.58995118]
[1754241080942,7.89223646,162.28,162.27,7.42745118]
[1754241081534,6.161,162.31,162.27,3.96745118]
[1754241081535,3.33,162.31,162.27,3.96745118]
[1754241081738,3.33,162.34,162.3,3.96745118]
[1754241081938,7.89126584,162.33,162.32,3.96745118]
[1754241082132,3.33,162.32,162.29,3.96745118]
[1754241082343,3.33,162.3,162.29,3.96745118]
[1754241082548,7.89126584,162.3,162.29,3.96745118]
[1754241083145,3.33,162.3,162.29,3.96745118]
[1754241084645,3.33,162.3,162.28,9.6221]
[1754241084848,6.1607,162.32,162.28,9.6221]
[1754241085140,3.33,162.29,162.28,9.6221]
[1754241085347,3.33,162.35,162.28,3.46]
[1754241085547,3.33,162.35,162.29,9.65953341]
[1754241085842,3.33,162.35,162.31,6.19953341]
[1754241086047,3.33,162.35,162.3,3.46]
[1754241086445,3.33,162.34,162.31,3.46]
[1754241086650,3.33,162.34,162.29,9.65953341]
[1754241087151,9.49,162.34,162.3,3.46]
[1754241087450,3.33,162.33,162.3,3.46]
[1754241087950,3.33,162.33,162.3,9.6214]
[1754241088152,3.33,162.4,162.32,3.46]
[1754241088352,3.33,162.4,162.33,9.65953341]
[1754241088544,6.1584,162.38,162.33,9.65953341]
[1754241088848,3.33,162.37,162.33,9.65953341]
[1754241089049,3.33,162.37,162.33,6.19953341]
[1754241089248,3.33,162.37,162.34,3.46]
[1754241089458,3.33,162.36,162.34,3.46]
[1754241091345,3.33,162.38,162.35,3.46]
[1754241091545,3.33,162.37,162.36,3.46]
[1754241093940,3.33,162.43,162.37,6.1585]
[1754241094147,3.33,162.43,162.35,9.65953341]
[1754241094744,3.33,162.43,162.35,6.19953341]
[1754241094946,3.33,162.39,162.36,3.46]
[1754241095342,9.488,162.39,162.36,3.46]
[1754241095550,3.33,162.38,162.36,3.46]
[1754241096551,3.33,162.37,162.36,3.46]
[1754241100655,3.33,162.37,162.36,9.6191]
[1754241101252,3.33,162.38,162.37,9.6187]
[1754241101655,6.1572,162.41,162.37,6.1587]
[1754241101854,3.33,162.4,162.38,3.46]
[1754241102757,3.33,162.4,162.38,9.6183]
[1754241103556,3.33,162.43,162.36,3.46]
[1754241104947,3.33,162.43,162.35,6.19953341]
[1754241104948,3.33,162.43,162.38,6.1581]
[1754241105153,3.33,162.43,162.38,9.5181]
[1754241105553,3.24,162.42,162.39,6.1579]
[1754241106060,3.24,162.41,162.39,6.1579]
[1754241106657,3.24,162.4,162.36,3.36]
[1754241107458,3.24,162.4,162.37,3.36]
[1754241108361,9.3976,162.4,162.37,9.5187]
[1754241108561,3.24,162.39,162.37,9.5187]
[1754241108958,3.24,162.39,162.37,3.36]
[1754241109565,3.24,162.39,162.37,9.5186]
[1754241110864,3.24,162.39,162.37,3.36]
[1754241111061,3.24,162.38,162.36,6.159]
[1754241111864,3.24,162.38,162.35,9.5194]
[1754241112866,3.24,162.37,162.35,3.36]
[1754241113867,3.24,162.37,162.34,6.19953341]
[1754241114064,3.24,162.39,162.35,3.36]
[1754241114768,3.24,162.38,162.36,3.36]
[1754241115565,3.24,162.37,162.36,6.1589]
[1754241115764,3.24,162.37,162.34,6.19953341]
[1754241116168,3.24,162.37,162.35,3.36]
[1754241117068,6.158,162.39,162.35,6.1594]
[1754241117267,3.24,162.36,162.35,6.1594]
[1754241117960,3.24,162.36,162.35,9.5194]
[1754241119169,3.24,162.36,162.35,3.36]
[1754241119971,3.24,162.36,162.35,9.5195]
[1754241120267,3.24,162.39,162.35,3.36]
[1754241121371,3.24,162.39,162.37,3.36]
[1754241121770,6.1578,162.4,162.37,3.36]
[1754241121975,3.24,162.4,162.37,6.1587]
[1754241122469,3.24,162.4,162.38,3.36]
[1754241125175,9.3965,162.43,162.39,9.518]
[1754241125378,3.24,162.42,162.4,3.36]
[1754241125874,3.24,162.42,162.39,6.158]
[1754241126075,3.24,162.42,162.39,9.518]
[1754241126468,9.3968,162.42,162.39,9.518]
[1754241126671,3.24,162.41,162.39,13.48080272]
[1754241126982,3.24,162.43,162.39,3.96280272]
[1754241127170,3.24,162.42,162.41,3.96280272]
[1754241127570,3.24,162.42,162.41,10.11990272]
[1754241127770,0.02,162.44,162.41,7.32280272]
[1754241127973,0.02,162.44,162.43,13.47920272]
[1754241128779,3.26,162.44,162.43,15.70313188]
[1754241128976,3.26,162.44,162.43,9.5164]
[1754241129278,5.21859352,162.48,162.44,3.36]
[1754241129480,3.24,162.47,162.46,9.54673188]
[1754241130079,3.24,162.47,162.46,3.36]
[1754241130377,3.24,162.47,162.45,3.36]
[1754241131174,3.24,162.46,162.45,3.36]
[1754241131876,3.24,162.47,162.45,3.36]
[1754241132476,3.24,162.47,162.45,9.5156]
[1754241132678,3.24,162.47,162.46,3.36]
[1754241132879,5.21859352,162.48,162.47,3.36]
[1754241133179,8.45859352,162.48,162.47,3.36]
[1754241133379,5.21859352,162.48,162.46,6.18673188]
[1754241133579,5.21859352,162.48,162.46,9.54673188]
[1754241133580,3.24,162.47,162.46,9.54673188]
[1754241135580,5.21859352,162.48,162.46,6.18673188]
[1754241135778,3.36,162.47,162.46,9.53673188]
[1754241136083,5.21859352,162.48,162.47,3.35]
[1754241136781,8.57859352,162.48,162.47,3.35]
[1754241137286,8.57859352,162.48,162.47,9.5049]
[1754241137785,8.57859352,162.48,162.47,3.35]
[1754241138687,5.21859352,162.48,162.47,9.5049]
[1754241139386,5.19859352,162.48,162.47,9.5049]
[1754241143292,8.55859352,162.48,162.47,9.5049]
[1754241143692,5.19859352,162.48,162.47,9.5049]
[1754241144089,5.19859352,162.48,162.47,6.1549]
[1754241144284,3.36,162.47,162.46,15.69193188]
[1754241144793,5.19859352,162.48,162.47,3.35]
[1754241144996,5.19859352,162.48,162.47,9.5049]
[1754241145595,8.55859352,162.48,162.47,9.5049]
[1754241146089,5.19859352,162.48,162.47,9.5049]
[1754241150306,3.36,162.47,162.46,6.1552]
[1754241150501,5.19859352,162.48,162.46,3.35]
[1754241150811,3.36,162.51,162.48,3.35]
[1754241151007,3.36,162.51,162.5,7.30650909]
[1754241152103,3.36,162.55,162.52,6.153]
[1754241152409,3.36,162.58,162.55,3.95650909]
[1754241152710,3.36,162.58,162.54,12.33150071]
[1754241153602,3.36,162.57,162.54,12.33150071]
[1754241153807,3.36,162.57,162.54,15.68150071]
[1754241154208,3.34,162.57,162.54,15.68150071]
[1754241155312,413.56,162.68,162.56,6.17950071]
[1754241155611,6.17950071,162.7,162.62,6.17950071]
[1754241155908,128.64551498,162.71,162.64,6.17950071]
[1754241156512,3.36,162.7,162.64,6.17950071]
[1754241156708,3.36,162.7,162.65,6.1281]
[1754241156910,3.36,162.7,162.65,9.4781]
[1754241157311,3.36,162.7,162.65,3.35]
[1754241157906,3.36,162.67,162.64,9.52950071]
[1754241158201,3.36,162.67,162.62,6.17950071]
[1754241158508,3.36,162.67,162.63,3.35]
[1754241158912,6.17950071,162.72,162.62,6.17950071]
[1754241158913,3.36,162.65,162.62,9.52950071]
[1754241159604,9.5083,162.65,162.62,9.52950071]
[1754241159803,3.36,162.64,162.6,6.17950071]
[1754241160208,3.36,162.63,162.6,9.52950071]
[1754241161620,3.36,162.62,162.58,6.17950071]
[1754241161914,3.36,162.67,162.59,3.35]
[1754241162114,6.1488,162.64,162.59,6.1503]
[1754241162305,3.36,162.63,162.6,3.35]
[1754241162511,3.36,162.63,162.59,3.35]
[1754241163615,3.36,162.63,162.6,3.35]
[1754241164313,3.48,162.62,162.59,6.1503]
[1754241164617,3.48,162.62,162.6,3.4]
[1754241164815,3.48,162.61,162.6,3.4]
[1754241165414,3.48,162.67,162.6,3.4]
[1754241165615,3.48,162.67,162.6,9.5499]
[1754241166111,3.48,162.67,162.61,6.1496]
[1754241166313,3.48,162.64,162.61,3.4]
[1754241167715,6.1486,162.64,162.61,3.4]
[1754241167915,3.48,162.63,162.61,3.4]
[1754241168118,6.1486,162.64,162.61,3.4]
[1754241168320,3.48,162.74,162.61,3.4]
[1754241168517,3.48,162.69,162.62,6.17950071]
[1754241168718,9.65950071,162.69,162.61,3.4]
[1754241168913,3.48,162.65,162.62,3.4]
[1754241169115,6.17950071,162.7,162.63,3.4]
[1754241169322,2.98,162.64,162.63,3.4]
[1754241169816,6.17950071,162.72,162.65,6.1478]
[1754241170017,6.17950071,162.74,162.66,3.4]
[1754241170521,6.146,162.71,162.67,3.4]
[1754241171415,3.48,162.69,162.67,3.4]
[1754241171922,3.48,162.7,162.67,3.4]
[1754241172217,6.17950071,162.74,162.68,3.4]
[1754241172415,3.48,162.74,162.7,3.4]
[1754241173527,3.48,162.72,162.7,3.4]
[1754241175217,3.48,162.74,162.69,9.57950071]
[1754241175420,3.48,162.74,162.7,3.4]
[1754241176222,9.6248,162.74,162.71,3.4]
[1754241176420,3.48,162.72,162.71,3.4]
[1754241176723,3.48,162.72,162.7,6.1462]
[1754241177023,3.48,162.72,162.69,12.32600071]
[1754241177221,3.48,162.72,162.69,15.72600071]
[1754241177416,3.48,162.73,162.7,3.4]
[1754241178419,3.48,162.72,162.71,3.4]
[1754241180220,6.1454,162.73,162.7,3.4]
[1754241180420,3.48,162.72,162.71,3.4]
[1754241181424,3.48,162.72,162.69,9.57950071]
[1754241181620,3.48,162.74,162.69,12.32600071]
[1754241181820,3.48,162.74,162.7,3.4]
[1754241182027,6.1451,162.73,162.7,3.4]
[1754241182221,3.48,162.72,162.7,3.4]
[1754241182621,3.48,162.71,162.7,3.4]
[1754241183014,6.1455,162.72,162.69,6.17950071]
[1754241183215,3.48,162.7,162.69,9.57950071]
[1754241183423,3.48,162.7,162.69,3.4]
[1754241183623,3.48,162.7,162.69,9.57950071]
[1754241183821,3.48,162.71,162.7,3.4]
[1754241184621,3.48,162.74,162.69,6.17950071]
[1754241184823,6.1453,162.73,162.69,9.57950071]
[1754241185023,3.48,162.72,162.7,3.4]
[1754241185323,3.48,162.72,162.61,113.5]
[1754241185324,6.1459,162.71,162.62,3.4]
[1754241185518,3.48,162.69,162.6,6.17950071]
[1754241185722,3.48,162.67,162.6,9.57950071]
[1754241185922,3.48,162.65,162.58,3.4]
[1754241186122,6.17950071,162.64,162.55,3.4]
[1754241186422,3.48,162.58,162.55,6.1517]
[1754241186623,3.48,162.58,162.53,3.4]
[1754241186818,3.48,162.58,162.51,9.57950071]
[1754241187017,3.48,162.56,162.51,9.57950071]
[1754241187618,3.48,162.55,162.51,9.57950071]
[1754241188324,3.48,162.55,162.52,3.4]
[1754241188727,3.48,162.54,162.52,3.4]
[1754241188927,6.17950071,162.6,162.52,9.5527]
[1754241188928,3.48,162.56,162.52,9.5527]
[1754241189126,3.48,162.56,162.52,3.4]
[1754241189827,9.6319,162.56,162.52,3.4]
[1754241190033,3.48,162.56,162.5,9.5537]
[1754241190332,3.48,162.58,162.52,3.4]
[1754241190534,3.48,162.59,162.55,3.4]
[1754241190829,3.48,162.59,162.54,6.1521]
[1754241191034,3.48,162.59,162.55,3.4]
[1754241191230,3.48,162.59,162.54,6.1521]
[1754241191424,3.48,162.59,162.56,3.4]
[1754241191622,3.48,162.58,162.56,3.4]
[1754241192134,6.1504,162.6,162.56,3.4]
[1754241192335,113.64,162.67,162.57,3.4]
[1754241192336,6.17950071,162.65,162.57,3.4]
[1754241192538,3.48,162.64,162.57,3.4]
[1754241192927,3.48,162.6,162.57,3.4]
[1754241193337,3.48,162.6,162.51,3.4]
[1754241193531,3.48,162.6,162.54,6.17950071]
[1754241193532,3.48,162.59,162.54,6.17950071]
[1754241193731,3.48,162.59,162.55,3.33]
[1754241194529,3.48,162.59,162.56,3.33]
[1754241194732,3.42,162.62,162.56,6.17950071]
[1754241195038,3.42,162.63,162.57,3.33]
[1754241195240,6.1496,162.62,162.57,9.4811]
[1754241195537,3.42,162.61,162.57,9.4811]
[1754241196127,3.42,162.61,162.58,3.33]
[1754241196333,3.42,162.62,162.59,3.33]
[1754241196841,3.42,162.62,162.58,6.1507]
[1754241197041,3.42,162.62,162.58,9.4807]
[1754241197545,6.1496,162.62,162.57,6.1511]
[1754241197737,3.42,162.61,162.57,9.4811]
[1754241198645,3.42,162.61,162.58,3.33]
[1754241199335,3.42,162.61,162.58,2.83]
[1754241199537,6.1497,162.61,162.56,6.1514]
[1754241199744,3.42,162.6,162.56,6.1514]
[1754241200540,3.42,162.59,162.55,6.17950071]
[1754241200943,9.5705,162.59,162.55,6.17950071]
[1754241201249,3.42,162.58,162.52,3.33]
[1754241201445,3.42,162.58,162.54,3.33]
[1754241201652,3.42,162.62,162.54,3.33]
[1754241201947,6.17950071,162.61,162.54,3.33]
[1754241202144,3.42,162.57,162.54,3.33]
[1754241202344,3.42,162.57,162.51,6.17950071]
[1754241202545,9.5715,162.57,162.52,3.33]